Cogmind - Beta 13 @@@ ROGUE MODE // 2024.04.09 @ 07:03:21 Player: DURANDAL Result: Destroyed by S-27 Virus with Autogun Performance ------------- Evolutions (4) 2000 Regions Visited (10) 2000 Robots Destroyed (117) 585 Value Destroyed (3458) 3458 Prototype IDs (14) 280 Alien Tech Used (0) 0 Bonus (747) 747 TOTAL SCORE: 9070 Bonus ------- High Alert Combat Kills 46 Follower Combat Kills 101 Aligned with FarCom 300 Met Data Miner 300 Cogmind --------- Core Integrity 0/850 Matter 244/450 Energy 56/100 System Corruption 1% Temperature Cool (0) Movement Core (50) Location -6/Factory Parts ------- > --- POWER (1) -------- (None) > --- PROPULSION (4) --- (None) > --- UTILITY (6) ------ Large Matter Pod Enhanced Optical Array Hacking Suite Hacking Suite > --- WEAPON (4) ------- (None) > --- INVENTORY (5) ---- Advanced Heat Sink Medium Matter Pod (100) Peak State ------------ > --- POWER ------------ Improved Deuterium Engine > --- PROPULSION ------- Cooled VTOL Module Cooled VTOL Module Cooled VTOL Module Cooled VTOL Module > --- UTILITY ---------- Huge Storage Unit Hacking Suite Hacking Suite Hacking Suite > --- WEAPON ----------- XL Autogun Array > --- INVENTORY -------- Light Nuclear Core Improved Deuterium Engine Light Treads Light Treads Improved Treads Medium Treads Improved VTOL Module Small Storage Unit Medium Matter Pod Large Matter Pod Advanced Visual Processing Unit Core Analyzer Kinecellerator Kinecellerator Hardened Medium Armor Plating Authchip [R/NC] Authchip [R/Combat] Authchip [Power] Light Assault Rifle Light Assault Rifle Autogun High-powered Shotgun High-powered Shotgun High-powered Shotgun Mining Laser [Rating: 76] Favorites ----------- Power Improved Deuterium Engine Engine Improved Deuterium Engine Power Core Light Nuclear Core Propulsion Improved Treads Treads Improved Treads Leg Carbon-fiber Leg Hover Unit Gravmag System Flight Unit Cooled VTOL Module Utility Hacking Suite Device Structural Scanner Storage Huge Storage Unit Processor Enhanced Optical Array Hackware Hacking Suite Protection Hardened Medium Armor Plating Weapon Light Assault Rifle Energy Gun Small Laser Energy Cannon Proton Cannon Ballistic Gun Light Assault Rifle Ballistic Cannon Advanced Assault Cannon Impact Weapon Flail Build | -11 -10 -10 -10 -9 -8 -7 -7 -7 -6 -6 ------- Run | Yrd Mat Min Exi Min Mat Fac Low Dat Pro Fac Slots Evolved 8 | . . . . . 4 2 . . . 2 Power . | . . . . . . . . . . . Propulsion 2 | . . . . . 2 . . . . . Utility 4 | . . . . . . 2 . . . 2 Weapon 2 | . . . . . 2 . . . . . Parts Attached 95 | 6 10 4 . 2 22 19 2 . 9 21 Power 9 | 1 . 1 . . 1 2 1 . 2 1 Engine 5 | 1 . 1 . . 1 1 . . . 1 Core 4 | . . . . . . 1 1 . 2 . Reactor . | . . . . . . . . . . . Propulsion 33 | 2 4 1 . 1 10 7 . . 2 6 Treads 20 | 2 4 1 . 1 9 2 . . . 1 Leg 4 | . . . . . . . . . . 4 Wheel . | . . . . . . . . . . . Hover 1 | . . . . . . . . . . 1 Flight 8 | . . . . . 1 5 . . 2 . Utility 15 | 1 1 1 . . 1 6 . . . 5 Device 5 | . 1 . . . . 1 . . . 3 Storage 4 | 1 . 1 . . . 1 . . . 1 Processor 1 | . . . . . . . . . . 1 Hackware 3 | . . . . . . 3 . . . . Protection 2 | . . . . . 1 1 . . . . Artifact . | . . . . . . . . . . . Weapon 38 | 2 5 1 . 1 10 4 1 . 5 9 Energy Gun 8 | 1 1 . . . . . . . 1 5 Energy Cannon 1 | . . . . . . . . . . 1 Ballistic Gun 25 | 1 4 1 . 1 10 4 1 . 3 . Ballistic Cannon 3 | . . . . . . . . . . 3 Launcher . | . . . . . . . . . . . Special Weapon . | . . . . . . . . . . . Impact Weapon 1 | . . . . . . . . . 1 . Slashing Weapon . | . . . . . . . . . . . Piercing Weapon . | . . . . . . . . . . . Special Melee Weapon . | . . . . . . . . . . . Unidentified Prototypes 2 | . . . . . 1 1 . . . . Parts Lost 46 | . 2 2 . . 9 1 . . 8 24 Power 7 | . . 1 . . 1 1 . . 2 2 Propulsion 17 | . 1 1 . . 4 . . . 2 9 Utility 4 | . . . . . 1 . . . . 3 Weapon 18 | . 1 . . . 3 . . . 4 10 Highest Loss Streak 8 | . 2 1 . . 2 1 . . 8 6 To Critical Strikes 1 | . . 1 . . . . . . . . Average Slot Usage (%) 89 | . 89 98 100 100 96 77 93 100 91 75 Engine 8 | . 14 13 14 14 8 6 . . . 1 Treads 22 | . 27 27 28 28 35 28 . . . 1 Flight 5 | . . . . . . 1 30 30 29 15 Device 7 | . 5 14 14 14 5 5 . . . 6 Storage 9 | . 14 14 14 14 9 7 7 7 7 3 Hackware 6 | . . . . . . 6 23 23 23 19 Protection 2 | . . . . . 3 10 . . . . Energy Gun 2 | . 11 . . . . . . . . 4 Ballistic Gun 20 | . 16 28 28 28 33 8 30 30 20 2 Naked Turns . | . . . . . . . . . . . Heaviest Build 125 | 14 14 87 87 87 113 125 19 19 19 39 Greatest Support 92 | 40 46 46 46 46 92 91 20 20 20 30 Greatest Overweight (x) 11 | . . 3 1 1 1 4 . . . 11 Average Overweight (x) . | . . . 1 1 . . . . . . Largest Inventory Capacity 25 | 8 8 25 25 25 25 25 8 8 8 8 Average Capacity 17 | 7 8 16 25 25 25 24 8 8 8 6 Most Carried 25 | 3 8 10 13 15 25 25 8 8 8 8 Average Carried 13 | 1 7 8 11 13 22 23 7 8 7 5 Final Capacity 25 | 8 8 25 25 25 25 8 8 8 8 5 Final Carried 24 | 2 8 9 13 15 24 8 8 8 8 2 Class Distribution -------------------- 41% | Mutant 16% | Scavenger-Sprinter 12% | Scavenger-Skirmisher 11% | Tank 6% | Skirmisher 5% | Hacker-Mutant 3% | Hacker-Skirmisher Dominant Class ---------------- Mutant | -10/Materials Mutant | -10/Mines Mutant | -10/Exiles Mutant | -9/Mines Scavenger-Skirmisher | -8/Materials Tank | -7/Factory Scavenger-Sprinter | -7/Lower Caves Scavenger-Sprinter | -7/Data Miner Scavenger-Sprinter | -6/Proximity Caves Scavenger-Sprinter | -6/Factory Resources | -11 -10 -10 -10 -9 -8 -7 -7 -7 -6 -6 ----------- Run | Yrd Mat Min Exi Min Mat Fac Low Dat Pro Fac Matter Collected 3321 | 260 410 177 . 62 896 870 124 . 191 331 Remotely . | . . . . . . . . . . . Salvage Created 4569 | . 660 267 . 57 1321 1485 131 . 148 500 Parts 238 | . 47 14 . 4 70 61 11 . 13 18 Haulers Intercepted 7 | . 2 . . . 4 1 . . . . Recyclers Shooed 2 | . 1 . . . 1 . . . . . Parts Field Recycled . | . . . . . . . . . . . Retrieved Matter . | . . . . . . . . . . . Parts Self-Destructed 24 | . . . . . . . 11 . 13 . Prevented . | . . . . . . . . . . . Kills | -11 -10 -10 -10 -9 -8 -7 -7 -7 -6 -6 ------- Run | Yrd Mat Min Exi Min Mat Fac Low Dat Pro Fac Combat Hostiles Destroyed 89 | . 13 7 . 4 25 18 4 . 7 11 Guns 82 | . 13 7 . 4 25 18 4 . 7 4 Cannons 7 | . . . . . . . . . . 7 Classes Destroyed 11 | . 5 . . 1 3 2 . . . . Worker 2 | . . . . 1 . . . . . 1 Builder 2 | . . . . . 1 1 . . . . Hauler 7 | . 2 . . . 4 1 . . . . Recycler 11 | . 2 1 . . 2 6 . . . . Operator 4 | . 2 . . . 2 . . . . . Watcher 2 | . . . . . 1 . . . . 1 Swarmer 35 | . 6 3 . 4 10 2 3 . 7 . Grunt 41 | . 7 4 . . 13 9 . . . 8 Sentry 6 | . . . . . 2 3 . . . 1 Hunter 3 | . . . . . . 2 1 . . . Programmer 4 | . . . . . . 2 . . . 2 Best Kill Streak 5 | . 4 2 . 4 4 5 3 . 4 2 Combat Bots Only 5 | . 3 2 . 4 4 5 3 . 4 2 Max Kills in Single Turn 2 | . 1 1 . 1 1 2 1 . 2 1 Gunslinging 1 | . . . . . . . . . 1 . Exploded . | . . . . . . . . . . . Melee . | . . . . . . . . . . . Uniques/NPCs Destroyed . | . . . . . . . . . . . Combat | -11 -10 -10 -10 -9 -8 -7 -7 -7 -6 -6 -------- Run | Yrd Mat Min Exi Min Mat Fac Low Dat Pro Fac Hostile Shots Fired 712 | . 77 58 . 26 184 58 22 . 104 183 Missed 214 | . 11 18 . 9 54 23 12 . 35 52 Damage Taken 7259 | . 690 451 . 132 1663 382 141 . 1044 2756 Core 1561 | . 62 73 . 46 154 41 45 . 288 852 Absorbed by Shields . | . . . . . . . . . . . Regen/Repaired (Parts) 290 | . 92 . . . 198 . . . . . Core Remaining (%) 61 | 100 . . . 27 72 . . . 46 . Volleys Fired 318 | . 59 32 . 13 86 47 12 . 20 49 Largest 4 | . 2 2 . 2 4 4 4 . 4 4 Hottest 233 | . 60 40 . 40 90 88 91 . 96 233 Shots Fired 758 | . 117 64 . 26 309 56 44 . 51 91 Gun 707 | . 117 64 . 26 309 56 44 . 51 40 Cannon 51 | . . . . . . . . . . 51 Launcher . | . . . . . . . . . . . Special . | . . . . . . . . . . . Kinetic 682 | . 78 64 . 26 309 56 44 . 51 54 Thermal 54 | . 23 . . . . . . . . 31 Explosive . | . . . . . . . . . . . Electromagnetic 22 | . 16 . . . . . . . . 6 Robot Hit Streak 22 | . 9 13 . 6 11 14 6 . 3 22 Robot Miss Streak 10 | . 4 7 . 4 8 6 10 . 6 10 Penetration Max . | . . . . . . . . . . . Secondary Targets 12 | . 1 . . . 4 . 2 . 3 2 Max Gunslinging Chain 1 | . 1 . . . 1 . 1 . 1 1 Shots Hit Robots 453 | . 67 38 . 14 177 51 20 . 22 64 Core Hits 234 | . 31 15 . 10 80 42 11 . 14 31 Critical Kills 3 | . 1 . . . 1 . . . 1 . Critical Parts Destroyed 2 | . . . . . 1 . . . . 1 Critical Strikes 10 | . 1 . . . 2 . . . 1 6 Destroy 4 | . 1 . . . 2 . . . 1 . Blast 5 | . . . . . . . . . . 5 Smash 1 | . . . . . . . . . . 1 Melee Attacks 8 | . . . . . . . . . 1 7 Impact 8 | . . . . . . . . . 1 7 Slashing . | . . . . . . . . . . . Piercing . | . . . . . . . . . . . Sneak Attacks . | . . . . . . . . . . . Combat Hostiles . | . . . . . . . . . . . Follow-up Attacks . | . . . . . . . . . . . Damage Inflicted 8301 | . 797 391 . 122 2140 2526 182 . 293 1850 Guns 7043 | . 783 390 . 112 2120 2499 182 . 293 664 Cannons 999 | . . . . . . . . . . 999 Explosions 98 | . . . . . . . . . . 98 Melee 89 | . . . . . . . . . . 89 Ramming 72 | . 14 1 . 10 20 27 . . . . Kinetic 7150 | . 556 390 . 112 2120 2499 182 . 293 998 Thermal 681 | . 102 . . . . . . . . 579 Explosive 98 | . . . . . . . . . . 98 Electromagnetic 211 | . 125 . . . . . . . . 86 Impact 89 | . . . . . . . . . . 89 Slashing . | . . . . . . . . . . . Piercing . | . . . . . . . . . . . Highest Corruption 1 | . . . . . . . . . . 1 Average Corruption 1 | . . . . . . . . . . 1 Corruption Purged . | . . . . . . . . . . . Corruption Blocked . | . . . . . . . . . . . Effects 5 | . . . . . . . . . . 5 Matter Fused 1 | . . . . . . . . . . 1 Parts Rejected 1 | . . . . . . . . . . 1 Data Loss (minor) 2 | . . . . . . . . . . 2 Weapon Failures 1 | . . . . . . . . . . 1 Overload Shots . | . . . . . . . . . . . Overflow Damage 190 | . . . . . . . . . . 190 Projectiles 25 | . . . . . . . . . . 25 Explosions 98 | . . . . . . . . . . 98 Melee 67 | . . . . . . . . . . 67 Knockbacks 12 | . . . . . . . . . . 12 Impact 1 | . . . . . . . . . . 1 Kinetic 10 | . . . . . . . . . . 10 Secondary 1 | . . . . . . . . . . 1 Self-Inflicted Damage 101 | . . . . . . . . . . 101 Shots 1 | . . . . . . . . . . 1 Rammed 10 | . 4 . . 2 2 2 . . . . Targets Rammed 14 | . 5 1 . 3 3 2 . . . . Kicked . | . . . . . . . . . . . Crushed 4 | . 1 1 . 1 1 . . . . . Highest Temperature 790 | . 18 27 . . 317 236 80 . 62 790 Average Temperature 101 | . 9 8 . . 89 75 30 . 28 209 Received Heat Transfer 1965 | . 186 183 . . 693 141 . . . 762 Effects 25 | . . . . . 4 . . . . 21 Shutdowns 2 | . . . . . . . . . . 2 Energy Bleed 3 | . . . . . 1 . . . . 2 Interference 8 | . . . . . 3 . . . . 5 Matter Decay 2 | . . . . . . . . . . 2 Short Circuit 2 | . . . . . . . . . . 2 Damage (minor) 2 | . . . . . . . . . . 2 Damage (major) 5 | . . . . . . . . . . 5 Damage (core) 1 | . . . . . . . . . . 1 Siege Activations . | . . . . . . . . . . . Robots Corrupted . | . . . . . . . . . . . Combat Hostiles . | . . . . . . . . . . . Parts Fried 3 | . 1 . . . . . . . . 2 Impact Corruptions 2 | . . . . . . . . . . 2 Robots Melted . | . . . . . . . . . . . Combat Hostiles . | . . . . . . . . . . . Parts Melted 1 | . . . . . . . . . . 1 Heat Transferred 1429 | . 225 . . . . . . . . 1204 Parts Sabotaged . | . . . . . . . . . . . Parts Stolen 1 | . . . . . . . 1 . . . Parts Stripped . | . . . . . . . . . . . Power Chain Reactions . | . . . . . . . . . . . Alert | -11 -10 -10 -10 -9 -8 -7 -7 -7 -6 -6 ------- Run | Yrd Mat Min Exi Min Mat Fac Low Dat Pro Fac Peak Influence 479 | . 247 161 . 120 287 479 . . . 391 Initial 369 | . . 1 . . 44 130 . . . 369 Average 117 | . 79 69 . 22 111 164 . . . 192 Maximum Alert Level 2 | . 1 . . . 1 2 . . . 1 Low Security (%) 80 | 100 91 100 . 100 82 67 . . . 59 Level 1 18 | . 8 . . . 17 24 . . . 40 Level 2 1 | . . . . . . 8 . . . . Level 3 . | . . . . . . . . . . . Level 4 . | . . . . . . . . . . . Level 5 . | . . . . . . . . . . . High Security . | . . . . . . . . . . . Max Security . | . . . . . . . . . . . Squads Dispatched 17 | . 2 . . . 3 8 . . . 4 Investigation 3 | . . . . . . 2 . . . 1 Extermination 4 | . . . . . . 2 . . . 2 Reinforcement 6 | . 2 . . . 2 1 . . . 1 Assault . | . . . . . . . . . . . Garrison 4 | . . . . . 1 3 . . . . Intercept . | . . . . . . . . . . . Searches Triggered . | . . . . . . . . . . . Construction Impeded . | . . . . . . . . . . . Haulers Reinforced . | . . . . . . . . . . . Active Scanning Responses . | . . . . . . . . . . . Cargo Convoy Interrupts . | . . . . . . . . . . . Stealth | -11 -10 -10 -10 -9 -8 -7 -7 -7 -6 -6 --------- Run | Yrd Mat Min Exi Min Mat Fac Low Dat Pro Fac Distress Signals 9 | . 3 . . . 4 1 . . . 1 Communications Jammed . | . . . . . . . . . . . Distress Signals . | . . . . . . . . . . . Times Spotted 144 | . 33 8 . 10 35 22 6 . 10 20 Peak Tracking Total 8 | . 4 3 . 4 7 6 4 . 8 4 Tactical Retreats 6 | . . 1 . 2 2 . . . . 1 Traps | -11 -10 -10 -10 -9 -8 -7 -7 -7 -6 -6 ------- Run | Yrd Mat Min Exi Min Mat Fac Low Dat Pro Fac Traps Triggered 4 | . 2 . . . 1 . . . . 1 Indirectly . | . . . . . . . . . . . Trap Hack Attempts . | . . . . . . . . . . . Triggered . | . . . . . . . . . . . Disarmed . | . . . . . . . . . . . Reprogrammed . | . . . . . . . . . . . Reused . | . . . . . . . . . . . Traps Extracted . | . . . . . . . . . . . Installed . | . . . . . . . . . . . Triggered 1 | . . . . . . . . . 1 . Machines | -11 -10 -10 -10 -9 -8 -7 -7 -7 -6 -6 ---------- Run | Yrd Mat Min Exi Min Mat Fac Low Dat Pro Fac Machines Disabled 12 | . . . . . 4 5 . . . 3 Max in Single Turn 1 | . . . . . 1 1 . . . 1 Garrison Access 1 | . . . . . 1 . . . . . Machines Repaired . | . . . . . . . . . . . Machines Dismantled . | . . . . . . . . . . . Machines Sabotaged . | . . . . . . . . . . . Overloaded Fab Kills . | . . . . . . . . . . . Hacking | -11 -10 -10 -10 -9 -8 -7 -7 -7 -6 -6 --------- Run | Yrd Mat Min Exi Min Mat Fac Low Dat Pro Fac Machines Accessed 14 | . 2 . . . 3 3 . 4 1 1 Terminals 2 | . . . . . . 1 . . 1 . Fabricators 1 | . . . . . . 1 . . . . Repair Stations 2 | . 1 . . . 1 . . . . . Recycling Units 2 | . 1 . . . . . . . . 1 Scanalyzers 2 | . . . . . 1 1 . . . . Garrison Access 1 | . . . . . 1 . . . . . Total Hacks 55 | . 4 . . . 9 9 . 31 1 1 Successful 50 | . 4 . . . 8 5 . 31 1 1 Failed 5 | . . . . . 1 4 . . . . Catastrophic . | . . . . . . . . . . . Database Lockouts . | . . . . . . . . . . . Manual 2 | . . . 1 . . . . 1 . . Terminals 5 | . . . . . . 4 . . 1 . Fabricators 3 | . . . . . . 3 . . . . Repair Stations 7 | . 2 . . . 5 . . . . . Recycling Units 3 | . 2 . . . . . . . . 1 Scanalyzers 5 | . . . . . 3 2 . . . . Garrison Access 1 | . . . . . 1 . . . . . Terminal Hacks 33 | . . . . . . 1 . 31 1 . Record 13 | . . . . . . 1 . 11 1 . Part Schematic 12 | . . . . . . . . 12 . . Robot Schematic 5 | . . . . . . . . 5 . . Prototype ID Bank 3 | . . . . . . . . 3 . . Fabricator Hacks 2 | . . . . . . 2 . . . . Load Schematic 1 | . . . . . . 1 . . . . Build 1 | . . . . . . 1 . . . . Repair Station Hacks 6 | . 2 . . . 4 . . . . . Scan Component 3 | . 1 . . . 2 . . . . . Repair 3 | . 1 . . . 2 . . . . . Recycling Unit Hacks 3 | . 2 . . . . . . . . 1 Report Inventory 3 | . 2 . . . . . . . . 1 Scanalyzer 5 | . . . . . 3 2 . . . . Insert Component 3 | . . . . . 2 1 . . . . Analyze 2 | . . . . . 1 1 . . . . Garrison Access Hacks 1 | . . . . . 1 . . . . . Seal Access 1 | . . . . . 1 . . . . . Unauthorized Hacks . | . . . . . . . . . . . Terminals . | . . . . . . . . . . . Fabricators . | . . . . . . . . . . . Repair Stations . | . . . . . . . . . . . Recycling Units . | . . . . . . . . . . . Scanalyzers . | . . . . . . . . . . . Garrison Access . | . . . . . . . . . . . Data Cores Recovered . | . . . . . . . . . . . Used . | . . . . . . . . . . . Hacking Detections 5 | . 1 . . . 1 3 . . . . Full Trace Events 2 | . . . . . . 2 . . . . Feedback Events . | . . . . . . . . . . . Feedback Blocked . | . . . . . . . . . . . Robot Schematics Acquired 5 | . . . . . . . . 5 . . Robots Built . | . . . . . . . . . . . Authchips . | . . . . . . . . . . . Time . | . . . . . . . . . . . Total Robot Build Rating . | . . . . . . . . . . . Part Schematics Acquired 14 | . . . . . 1 1 . 12 . . Parts Built 1 | . . . . . . 1 . . . . Authchips . | . . . . . . . . . . . Time 67 | . . . . . . 67 . . . . Total Part Build Rating 4 | . . . . . . 4 . . . . Parts Repaired 3 | . 1 . . . 2 . . . . . Time 84 | . 26 . . . 58 . . . . . Parts Recycled . | . . . . . . . . . . . Recycled Matter . | . . . . . . . . . . . Retrieved Matter . | . . . . . . . . . . . Retrieved Components . | . . . . . . . . . . . Parts Scanalyzed 2 | . . . . . 1 1 . . . . Part Schematics Acquired 2 | . . . . . 1 1 . . . . Parts Damaged . | . . . . . . . . . . . Bothacking | -11 -10 -10 -10 -9 -8 -7 -7 -7 -6 -6 ------------ Run | Yrd Mat Min Exi Min Mat Fac Low Dat Pro Fac Used RIF Installer . | . . . . . . . . . . . Robots Hacked . | . . . . . . . . . . . Non-combat . | . . . . . . . . . . . Combat . | . . . . . . . . . . . Robot Hacks Applied . | . . . . . . . . . . . Relay Couplers Released . | . . . . . . . . . . . Fabnet Peak Effective % . | . . . . . . . . . . . Robots Rewired . | . . . . . . . . . . . Allies Hacked . | . . . . . . . . . . . Hacks Repelled . | . . . . . . . . . . . Allies | -11 -10 -10 -10 -9 -8 -7 -7 -7 -6 -6 -------- Run | Yrd Mat Min Exi Min Mat Fac Low Dat Pro Fac Total Allies 3 | . . . . 3 . . . . . . Largest Group 3 | . . . . 3 2 . . . . . Highest-Rated Group 40 | . . . . 40 32 . . . . . Highest-Rated Ally 16 | . . . . 16 16 . . . . . Total Orders . | . . . . . . . . . . . Ally Attacks 28 | . . . . 13 15 . . . . . Total Damage 343 | . . . . 108 235 . . . . . Kills 7 | . . . . 4 3 . . . . . Allies Corrupted . | . . . . . . . . . . . Allies Melted . | . . . . . . . . . . . Intel | -11 -10 -10 -10 -9 -8 -7 -7 -7 -6 -6 ------- Run | Yrd Mat Min Exi Min Mat Fac Low Dat Pro Fac Robot Analysis Total . | . . . . . . . . . . . Derelict Logs Recovered 3 | . . . . 1 . . 1 . 1 . Drone Launches . | . . . . . . . . . . . Drone Recoveries . | . . . . . . . . . . . Exploration | -11 -10 -10 -10 -9 -8 -7 -7 -7 -6 -6 ------------- Run | Yrd Mat Min Exi Min Mat Fac Low Dat Pro Fac Turns Passed 9492 | 67 1432 557 1144 783 1801 1448 557 21 258 1424 Spaces Moved 4662 | 37 723 217 477 282 574 621 514 78 402 737 Core 42 | 5 . . . . . . . . . 37 Treads 2910 | 32 723 217 477 282 574 498 . . . 107 Legs 104 | . . . . . . . . . . 104 Wheels . | . . . . . . . . . . . Hover . | . . . . . . . . . . . Flight 1606 | . . . . . . 123 514 78 402 489 Fastest Speed 26 | 50 160 160 240 240 160 26 26 26 26 26 Average Speed 147 | 145 160 202 240 240 233 198 26 26 26 81 Slowest Speed 600 | 160 160 400 240 240 240 286 26 26 29 600 Overloaded Moves . | . . . . . . . . . . . Propulsion Burnouts . | . . . . . . . . . . . Robots Hopped 3 | . . . . . . 3 . . . . Cave-ins Triggered . | . . . . . . . . . . . Exploration Rate (%) 49 | 3 75 31 89 69 57 16 71 68 50 12 Regions Visited 10 Branch Regions 6 Pre-discovered Areas 1 | . . . . . . . . 1 . . Known Exits Taken . | . . . . . . . . . . . Unknown Exits Taken 10 | 1 1 1 1 1 1 1 1 1 1 . Scrap Searched 9 | . . . . 1 . . 7 . 1 . Spaces Dug 4 | . . . . . . . . . . 4 Terrain Destroyed 68 | . . . . . 3 12 . . . 53 Melee 4 | . . . . . . . . . . 4 Projectile 23 | . . . . . 3 12 . . . 8 AOE 41 | . . . . . . . . . . 41 Terrain Rammed . | . . . . . . . . . . . Walls Destroyed . | . . . . . . . . . . . Machines Disabled . | . . . . . . . . . . . Actions | -11 -10 -10 -10 -9 -8 -7 -7 -7 -6 -6 --------- Run | Yrd Mat Min Exi Min Mat Fac Low Dat Pro Fac Total 6738 | 50 886 278 477 363 869 835 916 77 515 1472 Wait 1484 | . 62 20 . 62 136 111 380 . 74 639 Move 4648 | 36 722 216 476 281 573 616 513 77 401 737 Hop 1 | . . . . . . 1 . . . . Pick Up 116 | 8 20 4 1 2 36 15 5 . 8 17 Fast Attach . | . . . . . . . . . . . Attach 67 | 6 6 2 . . 16 7 1 . 8 21 Detach 2 | . . . . . 1 . . . . 1 Swap 28 | . 4 2 . 2 6 12 1 . 1 . Drop 52 | . 8 1 . . 12 24 4 . 2 1 Fire 318 | . 59 32 . 13 86 47 12 . 20 49 Melee 8 | . . . . . . . . . 1 7 Ram . | . . . . . . . . . . . Kick . | . . . . . . . . . . . Crush 14 | . 5 1 . 3 3 2 . . . . Escape Stasis . | . . . . . . . . . . . Rewire . | . . . . . . . . . . . Trap . | . . . . . . . . . . . Miscellaneous . | . . . . . . . . . . . Route ------- -11/Scrapyard -10/Materials (discovered 5 exits: [*Mat x2] / [*Min x2] / [Sub]) -10/Mines (discovered 2 exits: [*Mat] / *Exi) -10/Exiles (discovered 2 exits: [*Min x2]) -9/Mines -8/Materials -7/Factory -7/Lower Caves (discovered 2 exits: [*Low] / *Dat) -7/Data Miner -6/Proximity Caves -6/Factory (discovered 1 exit: [*Fac]) History --------- Turn | Location | Event 10 | -11/Scrapyard | Discovered new exit (range 14) 68 | -11/Scrapyard | Entered Materials 142 | -10/Materials | Discovered new exit (range 10) 308 | -10/Materials | Build established: Mutant 327 | -10/Materials | Discovered new exit (range 16) 530 | -10/Materials | Discovered new exit (range 13) 1039 | -10/Materials | Repaired Assault Rifle 1377 | -10/Materials | Discovered new exit (range 13) 1381 | -10/Materials | Discovered new exit (range 11) 1500 | -10/Materials | Entered Mines 1601 | -10/Mines | Discovered new exit (range 8) 1748 | -10/Mines | Core integrity fell below 50% 2048 | -10/Mines | Deemed a non-threat by the Exiles lab entrance 2048 | -10/Mines | Discovered new exit (range 5) 2057 | -10/Mines | Entered Exiles 2089 | -10/Exiles | Discovered new exit (range 15) 2139 | -10/Exiles | Met 8R-AWN 2182 | -10/Exiles | Met EX-HEX 2254 | -10/Exiles | Met EX-BIN 2283 | -10/Exiles | Aligned with FarCom system 2285 | -10/Exiles | Given EX-Vault access code 2343 | -10/Exiles | Opened EX-Vault 2355 | -10/Exiles | Found Prototype Ballistic Gun 2404 | -10/Exiles | Warned to stay clear of 0b10 Research branches 2483 | -10/Exiles | Met EX-DEC 2562 | -10/Exiles | Discovered new exit (range 14) 2758 | -10/Exiles | Visited The Gauntlet 3201 | -10/Exiles | Left Exiles lab with XL Autogun Array 3201 | -10/Exiles | Entered Mines 3588 | -9/Mines | Learned Materials garrison access intel 3780 | -9/Mines | Assisted by bots powering up and referring to "LRC-V3" 3979 | -9/Mines | Discovered new exit (range 2) 3984 | -9/Mines | Entered Materials 3984 | -8/Materials | Accompanied by 2 allies 3984 | -8/Materials | Evolved 4 slots: Propulsion x2, Weapon x2 3985 | -8/Materials | Loaded intel: 1 garrison access location 4024 | -8/Materials | Identified XL Autogun Array 4289 | -8/Materials | Build established: Skirmisher 4685 | -8/Materials | Build established: Scavenger-Skirmisher 4880 | -8/Materials | Repaired Assault Rifle 4918 | -8/Materials | Repaired Imp. Treads 5030 | -8/Materials | Garrison activated, responded to threat 5605 | -8/Materials | Discovered new exit (range 16) 5785 | -8/Materials | Entered Factory 5785 | -7/Factory | Evolved 2 slots: Utility x2 6092 | -7/Factory | Build established: Tank 6476 | -7/Factory | Garrison activated, responded to threat 7022 | -7/Factory | Fabricated Cld. VTOL Module (x1) 7134 | -7/Factory | Build established: Hacker-Skirmisher 7207 | -7/Factory | Discovered new exit (range 7) 7233 | -7/Factory | Entered Lower Caves 7249 | -7/Lower Caves | Learned Factory stockpile data 7442 | -7/Lower Caves | Build established: Scavenger-Sprinter 7767 | -7/Lower Caves | Discovered new exit (range 15) 7769 | -7/Lower Caves | A Derelict revealed a hidden shortcut to meet someone special 7790 | -7/Lower Caves | Entered Data Miner 7790 | -7/Data Miner | Discovered new exit (range 6) 7795 | -7/Data Miner | Met Data Miner 7800 | -7/Data Miner | Learned location of Section 7 (-2) 7800 | -7/Data Miner | Acquired the access code to Warlord's prototype stash 7805 | -7/Data Miner | Received God Mode back door access code from Data Miner 7811 | -7/Data Miner | Entered Proximity Caves 7948 | -6/Proximity Caves | Core integrity fell below 50% 7980 | -6/Proximity Caves | Lost 8 parts (2p2n4w) 8020 | -6/Proximity Caves | Spotter reported a threat 8049 | -6/Proximity Caves | Learned 8 Factory zone layouts 8053 | -6/Proximity Caves | Spotter reported a threat 8066 | -6/Proximity Caves | Discovered new exit (range 14) 8069 | -6/Proximity Caves | Entered Factory 8069 | -6/Factory | Evolved 2 slots: Utility x2 8344 | -6/Factory | Discovered new exit (range 20) 8914 | -6/Factory | Lost 6 parts (1p2n1u2w) 9192 | -6/Factory | Core integrity fell below 50% 9232 | -6/Factory | Lost 4 parts (2n1u1w) 9389 | -6/Factory | Lost 6 parts (2n1u3w) 9483 | -6/Factory | Core integrity fell below 20% 9493 | -6/Factory | Destroyed by S-27 Virus with Autogun Last Messages --------------- 09363_ Acquired 2 matter. 09366_ K-01 Serf collects debris. 09375_ Acquired 5 matter. 09405_ Acquired Carbon-fiber Leg. 09409_ Acquired Shock Rifle. 09414_ Carbon-fiber Leg severed. 09418_ Carbon-fiber Leg destroyed. 09452_ ALERT: Suspicious intruders detected, dispatching Specialist reinforcements to area. 09458_ Shock Rifle destroyed. 09466_ Acquired Proton Cannon. 09468_ Carbon-fiber Leg destroyed. 09470_ System corrupted: Component data lost. 09482_ Nuclear Reactor explodes. 09482_ Destroyed Carbon-fiber Leg. 09482_ Proton Cannon destroyed. 09482_ Destroyed Proton Cannon. 09483_ Hacking Suite severed. 09484_ K-01 Serf collects debris. 09487_ U-05 Engineer lays Concrete. Map ----- +----------------------------------------------------+ | ?????????????????????????????????????????????????? | | ?????????????????????????????????????????????????? | | ?????????????????????????????????????????????????? | | ?????????????????????????????????????????????????? | | ?????????????????????????????????????????????????? | | ?????????????????????????????????????????????????? | | ?????????????????????????????????????????????????? | | ???????????????????????????????!?????????????????? | | ?????????????????????????????????????????????????? | | ?????????????????????????????????????????????????? | | ?????????????????????????????????????????????????? | | ?????????????????????????????????????????????????? | | ?????????????????????????????????????????????????? | | ?????????????????????????????????????????????????? | | ?????????????????????????????????????????????????? | | # """""" # "" """????????????????????????????## | | # """""" # "T """????????????????????????????# | | # # "" """????????????????????????????# | | # # """?????????????##########?????# | | ########### """?????????????# ! #?????# | | ###???????# """?????????????# """#?????# | | #???????# ?????????????#!!] """#?????# | | ###########+######+##??####??#!!] R"#?????# | | #??# ###T ####!]] """#?????# | | #??# # #?????# | | """ T #??# ]@ # ] #?????## | | ###### """ #??# /s #?###??? | | # """ #??# [ #### #s s #? #??? | | """ # #########???# #####+####?# #??? | | """ # w ????????# #??# #????# #??? | | """ # ###### ###????????# #??# #????# #??? | | """ # #????# #????????? + #??#l####?# #??? | | # #????# #????????" # #### ## ### ###? | | ##+### ##+###### #??????? # #? | | ## # #?????? !?# ## | | ## ## # #?????####?# # | | ?# ## # ###????????# # | | ?# ## + ?????? # | | ?# ## # ??????########### # | | ?# ## # ????????????????## # | | ?????????????????????????????????????# ## | | ??????????????????????????o??????????# | | ?????????????????????????????????????# ## # | | ?????????????????????????????????????# #?### | | ?????????????????????????????????????# #???# | | ?????????????????????????????????????# ????# | | ?????????????????????????????????????# ????# | | ?????????????????????????????????????# ????# | | ?????????????????????????????????????+ ?? / | | ?????????????????????????????????????# #?#### | +----------------------------------------------------+ Best States ------------- Heat Dissipation 37 Energy Generation 16 Energy Capacity 290 Matter Stores 300 Matter Capacity 450 Sight Range 22 Terrain Scan Density 10 Armor Coverage 450 Evasion (%) 64 Recoil Reduction 4 Kinecelleration 30 Offensive Hacking 30 Authchip Count 6 Item Schematics ----------------- Imp. Treads | -8/Materials | Scanalyzed Cld. VTOL Module | -7/Factory | Scanalyzed Combat Drone Bay | -7/Data Miner | Free Lgt. Regenerative Plating | -7/Data Miner | Free Biomechanical Wings | -7/Data Miner | Free Gravity Neutralizer | -7/Data Miner | Free Imp. Heavy Machine Gun | -7/Data Miner | Free Nuclear Pulse Array | -7/Data Miner | Free Imp. Kinecellerator | -7/Data Miner | Free Smartbomb Launcher | -7/Data Miner | Free System Guard | -7/Data Miner | Free Imp. Coolant Injector | -7/Data Miner | Free Imp. System Guard | -7/Data Miner | Free Adv. Target Analyzer | -7/Data Miner | Free Robot Schematics ------------------ O-24 Administrator | -7/Data Miner | Free E-15 Imp | -7/Data Miner | Free L-41 Fighter | -7/Data Miner | Free H-66 Slayer | -7/Data Miner | Free M-22 Extractor | -7/Data Miner | Free Fabricated ------------ Cld. VTOL Module | x1 | -7/Factory Alien Tech Used ----------------- None Achievements -------------- Cya! I'm Back, Baby! Leap Before You Look The Oracle Challenges ------------ None Game ------ Seed FusionThrowingCompactor Manual? 0 Play Time 01:39:02 Cumulative 14.9 hours Start 2024.04.08 @ 08:19:39 End 2024.04.09 @ 07:03:21 Sessions 5 Manual Loads 0 Difficulty Rogue Special Mode None Game No. 25 Rogue 25 Adventurer 0 Explorer 0 Win Type - Total 0 Types 0/0/0/0/0/0/0/0/0 Lore% 19 Gallery% 15 Achievement% 16 Wizard Run 0 Options --------- Layout 1 ASCII 0 Keyboard 0 Movement Numpad Keybinds 0 Fullscreen 1 Font 24/Smallcaps Map View 50x35 Zoom Use 0% Tactical HUD 1 Map Filters NONE Filters NONE Steam 1 RUN: 177e4038-e09c-4a83-ba7d-bc7058c952c1